fUST/lending_fUST_20250514
["ID","MTS","AMOUNT","RATE_DAILY","PERIOD"]
[360978370,1747177849291,-151.0,0.00013698,2]
[360978372,1747177849301,-400.0,0.00013698,2]
[360978374,1747177849311,-151.0,0.00013698,2]
[360978376,1747177849321,-400.0,0.00013698,2]
[360978378,1747177849331,-400.0,0.00013698,2]
[360978380,1747177849341,-3328.79,0.00013698,2]
[360978382,1747177849352,-400.0,0.00013698,2]
[360978384,1747177849362,-400.0,0.00013698,2]
[360978386,1747177849372,-151.0,0.00013698,2]
[360978388,1747177849382,-400.0,0.00013698,2]
[360978390,1747177849392,-1207.82,0.00013698,2]
[360978392,1747177849401,-400.0,0.00013698,2]
[360978394,1747177849411,-402.03,0.00013698,2]
[360978396,1747177849421,-400.0,0.00013698,2]
[360978398,1747177849431,-640.47,0.00013698,2]
[360978400,1747177849442,-400.0,0.00013698,2]
[360978402,1747177849452,-1023.24,0.00013698,2]
[360978404,1747177849462,-422.14,0.00013698,2]
[360978406,1747177849472,-400.0,0.00013698,2]
[360978408,1747177849482,-400.0,0.00013698,2]
[360978410,1747177849492,-820.66,0.00013698,2]
[360978412,1747177849502,-151.0,0.00013698,2]
[360978414,1747177849512,-3133.11,0.00013698,2]
[360978416,1747177849522,-787.2,0.00013698,2]
[360978418,1747177849532,-805.4,0.00013698,2]
[360978420,1747177849542,-449.51,0.00013698,2]
[360978423,1747177849552,-151.0,0.00013698,2]
[360978425,1747177849561,-400.0,0.00013698,2]
[360978427,1747177849571,-410.06,0.00013698,2]
[360978429,1747177849581,-400.0,0.00013698,2]
[360978431,1747177849591,-1712.23,0.00013698,2]
[360978433,1747177849601,-837.11,0.00013698,2]
[360978435,1747177849612,-1235.24,0.00013698,2]
[360978437,1747177849622,-400.0,0.00013698,2]
[360978439,1747177849632,-511.1,0.00013698,2]
[360978441,1747177849642,-1129.21,0.00013698,2]
[360978443,1747177849652,-400.0,0.00013698,2]
[360978445,1747177849662,-400.0,0.00013698,2]
[360978447,1747177849672,-400.0,0.00013698,2]
[360978449,1747177849681,-400.0,0.00013698,2]
[360978451,1747177849692,-727.23,0.00013698,2]
[360978453,1747177849702,-400.0,0.00013698,2]
[360978456,1747177849714,-2061.37,0.00013698,2]
[360978457,1747177849724,-1711.13,0.00013698,2]
[360978460,1747177849734,-4585.35,0.00013698,2]
[360978462,1747177849744,-400.0,0.00013698,2]
[360978464,1747177849753,-1080.88,0.00013698,2]
[360978466,1747177849764,-1872.54,0.00013698,2]
[360978468,1747177849774,-1559.01,0.00013698,2]
[360978470,1747177849787,-400.0,0.00013698,2]
[360978472,1747177849796,-549.38,0.00013698,2]
[360978474,1747177849807,-400.0,0.00013698,2]
[360978476,1747177849817,-584.69,0.00013698,2]
[360978478,1747177849827,-400.0,0.00013698,2]
[360978480,1747177849837,-436.65,0.00013698,2]
[360978482,1747177849847,-400.0,0.00013698,2]
[360978484,1747177849858,-1693.16,0.00013698,2]
[360978486,1747177849868,-834.05,0.00013698,2]
[360978488,1747177849878,-400.0,0.00013698,2]
[360978490,1747177849888,-379.69643537,0.00013698,2]
[360978492,1747177849898,-400.0,0.00013698,2]
[360978494,1747177849908,-400.0,0.00013698,2]
[360978496,1747177849918,-400.0,0.00013698,2]
[360978498,1747177849928,-400.0,0.00013698,2]
[360978500,1747177849938,-400.0,0.00013698,2]
[360978502,1747177849948,-2127.68,0.00013698,2]
[360978504,1747177849959,-400.0,0.00013698,2]
[360978506,1747177849969,-400.0,0.00013698,2]
[360978508,1747177849979,-400.0,0.00013698,2]
[360978510,1747177849990,-973.06,0.00013698,2]
[360978512,1747177850000,-400.0,0.00013698,2]
[360978514,1747177850010,-400.0,0.00013698,2]
[360978516,1747177850020,-400.0,0.00013698,2]
[360978518,1747177850029,-400.0,0.00013698,2]
[360978520,1747177850039,-551.2,0.00013698,2]
[360978522,1747177850048,-413.34,0.00013698,2]
[360978525,1747177850058,-400.0,0.00013698,2]
[360978527,1747177850068,-2436.09,0.00013698,2]
[360978529,1747177850078,-400.0,0.00013698,2]
[360978531,1747177850088,-400.0,0.00013698,2]
[360978533,1747177850097,-400.0,0.00013698,2]
[360978535,1747177850107,-200.92366137,0.00013698,2]
[360978537,1747177850117,-151.0,0.00013698,2]
[360978539,1747177850127,-151.0,0.00013698,2]
[360978541,1747177850138,-400.0,0.00013698,2]
[360978543,1747177850148,-1004.96,0.00013698,2]
[360978545,1747177850158,-400.0,0.00013698,2]
[360978547,1747177850167,-400.0,0.00013698,2]
[360978549,1747177850177,-400.0,0.00013698,2]
[360978551,1747177850187,-1824.81,0.00013698,2]
[360978553,1747177850198,-400.0,0.00013698,2]
[360978555,1747177850208,-400.0,0.00013698,2]
[360978557,1747177850218,-151.0,0.00013698,2]
[360978559,1747177850228,-151.0,0.00013698,2]
[360978561,1747177850238,-400.0,0.00013698,2]
[360978563,1747177850247,-408.05,0.00013698,2]
[360978565,1747177850257,-536.9,0.00013698,2]
[360978567,1747177850266,-400.0,0.00013698,2]
[360978569,1747177850276,-400.0,0.00013698,2]
[360978571,1747177850286,-400.0,0.00013698,2]
[360978573,1747177850295,-492.5,0.00013698,2]
[360978575,1747177850305,-400.0,0.00013698,2]
[360978577,1747177850315,-400.0,0.00013698,2]
[360978579,1747177850325,-1287.19,0.00013698,2]
[360978581,1747177850334,-400.0,0.00013698,2]
[360978583,1747177850344,-534.83,0.00013698,2]
[360978585,1747177850353,-400.0,0.00013698,2]
[360978587,1747177850363,-400.0,0.00013698,2]
[360978589,1747177850373,-400.0,0.00013698,2]
[360978591,1747177850382,-649.18,0.00013698,2]
[360978593,1747177850392,-7339.72,0.00013698,2]
[360978595,1747177850402,-400.0,0.00013698,2]
[360978597,1747177850411,-400.0,0.00013698,2]
[360978599,1747177850421,-841.28,0.00013698,2]
[360978600,1747177850430,-400.0,0.00013698,2]
[360978601,1747177850440,-396.64843461,0.00013698,2]
[360978602,1747177850451,-400.0,0.00013698,2]
[360978603,1747177850461,-2664.61,0.00013698,2]
[360978604,1747177850473,-1097.25,0.00013698,2]
[360978605,1747177850484,-400.0,0.00013698,2]
[360978606,1747177850494,-761.26,0.00013698,2]
[360978607,1747177850505,-400.0,0.00013698,2]
[360978608,1747177850514,-449.97,0.00013698,2]
[360978609,1747177850523,-400.0,0.00013698,2]
[360978610,1747177850533,-400.0,0.00013698,2]
[360978611,1747177850542,-492.67,0.00013698,2]
[360978612,1747177850551,-1265.85,0.00013698,2]
[360978613,1747177850561,-4308.11,0.00013698,2]
[360978614,1747177850570,-358.5744793,0.00013698,2]
[360978615,1747177850581,-437.51771795,0.00013698,2]
[360978617,1747177850590,-662.02,0.00013698,2]
[360978619,1747177850600,-400.0,0.00013698,2]
[360978621,1747177850610,-495.01,0.00013698,2]
[360978623,1747177850619,-400.0,0.00013698,2]
[360978625,1747177850629,-1719.35,0.00013698,2]
[360978627,1747177850638,-1791.39,0.00013698,2]
[360978629,1747177850649,-400.0,0.00013698,2]
[360978631,1747177850660,-400.0,0.00013698,2]
[360978633,1747177850670,-1519.63,0.00013698,2]
[360978635,1747177850679,-400.0,0.00013698,2]
[360978637,1747177850688,-400.0,0.00013698,2]
[360978639,1747177850698,-1061.19,0.00013698,2]
[360978641,1747177850707,-400.0,0.00013698,2]
[360978643,1747177850717,-400.0,0.00013698,2]
[360978645,1747177850727,-400.0,0.00013698,2]
[360978647,1747177850737,-400.0,0.00013698,2]
[360978649,1747177850747,-1019.88,0.00013698,2]
[360978651,1747177850756,-721.78,0.00013698,2]
[360978653,1747177850765,-400.0,0.00013698,2]
[360978655,1747177850775,-553.76,0.00013698,2]
[360978657,1747177850788,-400.0,0.00013698,2]
[360978659,1747177850798,-1280.33,0.00013698,2]
[360978661,1747177850807,-400.0,0.00013698,2]
[360978663,1747177850817,-899.4,0.00013698,2]
[360978665,1747177850826,-400.0,0.00013698,2]
[360978667,1747177850837,-741.83,0.00013698,2]
[360978669,1747177850846,-151.0,0.00013699,2]
[360978671,1747177850856,-151.0,0.00013699,2]
[360978673,1747177850866,-151.0,0.00013699,2]
[360978675,1747177850875,-207.4928864,0.00013699,2]
[360978677,1747177850885,-151.0,0.00013699,2]
[360978679,1747177850896,-151.0,0.00013699,2]
[360978682,1747177850906,-151.0,0.00013699,2]
[360978684,1747177850915,-151.0,0.00013699,2]
[360978686,1747177850925,-781.964394,0.00013699,2]
[360978688,1747177850934,-151.0,0.00013699,2]
[360978690,1747177850943,-500.0,0.00013699,2]
[360978692,1747177850954,-500.0,0.00013699,2]
[360978702,1747177851035,-500.0,0.00013699,2]
[360978704,1747177851046,-299.32733175,0.00013699,2]
[360978706,1747177851055,-500.0,0.00013699,2]
[360978708,1747177851065,-1330.03986707,0.00013735,2]
[360978710,1747177851074,-1330.03986707,0.00013804,2]
[360978712,1747177851085,-12080.30758055,0.00013866,2]
[360978714,1747177851095,-151.0,0.00013872,2]
[360978716,1747177851105,-151.0,0.00013872,2]
[360978718,1747177851115,-294.622024,0.00013872,2]
[360978720,1747177851125,-1330.03986707,0.00013872,2]
[360978722,1747177851135,-151.0,0.000139,2]
[360978724,1747177851144,-154.861119,0.000139,2]
[360978726,1747177851154,-71196.71090326,0.00013969,2]
[360978728,1747177851164,-151.0,0.00013969,2]
[360978729,1747177851173,-151.0,0.00013969,2]
[360978730,1747177851183,-155.2608,0.00013969,2]
[360978731,1747177851193,-151.0,0.00013969,2]
[360978732,1747177851203,-151.0,0.00013969,2]
[360978733,1747177851213,-151.0,0.00013969,2]
[360978734,1747177851222,-151.0,0.00013969,2]
[360978735,1747177851232,-151.0,0.00013969,2]
[360978736,1747177851241,-151.0,0.00013969,2]
[360978737,1747177851251,-151.0,0.00013969,2]
[360978738,1747177851260,-153.695995,0.00013969,2]
[360978739,1747177851270,-151.0,0.00013969,2]
[360978740,1747177851279,-151.0,0.00013969,2]
[360978741,1747177851288,-151.0,0.00013969,2]
[360978742,1747177851297,-151.0,0.00013969,2]
[360978743,1747177851308,-151.0,0.00013969,2]
[360978744,1747177851318,-151.0,0.00013969,2]
[360978745,1747177851327,-151.0,0.00013969,2]
[360978746,1747177851337,-151.0,0.00013969,2]
[360978747,1747177851346,-151.0,0.00013969,2]
[360978748,1747177851355,-151.0,0.00013969,2]
[360978749,1747177851365,-151.0,0.00013969,2]
[360978750,1747177851375,-151.0,0.00013969,2]
[360978751,1747177851384,-151.0,0.00013969,2]
[360978752,1747177851394,-151.0,0.00013969,2]
[360978753,1747177851403,-151.0,0.00013972,2]
[360978754,1747177851412,-151.0,0.00013972,2]
[360978755,1747177851422,-151.0,0.00013972,2]
[360978756,1747177851432,-151.0,0.00013972,2]
[360978757,1747177851442,-151.0,0.00013972,2]
[360978758,1747177851452,-400.0,0.00013972,2]
[360978759,1747177851462,-400.0,0.00013972,2]
[360978760,1747177851471,-565.52,0.00013972,2]
[360978761,1747177851480,-400.0,0.00013972,2]
[360978762,1747177851489,-400.0,0.00013972,2]
[360978763,1747177851499,-400.0,0.00013972,2]
[360978764,1747177851508,-573.02,0.00013972,2]
[360978765,1747177851519,-400.0,0.00013972,2]
[360978766,1747177851529,-151.0,0.00013972,2]
[360978767,1747177851539,-505.07060852,0.00013972,2]
[360978768,1747177851548,-400.0,0.00013972,2]
[360978769,1747177851557,-151.0,0.00013972,2]
[360978770,1747177851567,-151.0,0.00013972,2]
[360978771,1747177851577,-151.0,0.00013972,2]
[360978772,1747177851587,-400.0,0.00013972,2]
[360978773,1747177851597,-400.0,0.00013972,2]
[360978774,1747177851607,-401.63,0.00013972,2]
[360978775,1747177851616,-151.0,0.00013972,2]
[360978776,1747177851625,-151.0,0.00013972,2]
[360978777,1747177851634,-151.0,0.00013972,2]
[360978778,1747177851645,-151.0,0.00013972,2]
[360978779,1747177851654,-151.0,0.00013972,2]
[360978780,1747177851664,-151.0,0.00013972,2]
[360978781,1747177851673,-151.0,0.00013972,2]
[360978782,1747177851683,-151.0,0.00013972,2]
[360978783,1747177851693,-151.0,0.00013972,2]
[360978784,1747177851708,-151.0,0.00013972,2]
[360978785,1747177851718,-151.0,0.00013972,2]
[360978786,1747177851727,-400.0,0.00013972,2]
[360978787,1747177851736,-226.02148322,0.00013972,2]
[360978788,1747177851745,-690.33,0.00013972,2]
[360978789,1747177851755,-400.0,0.00013972,2]
[360978790,1747177851765,-151.0,0.00013972,2]
[360978791,1747177851774,-151.0,0.00013972,2]
[360978792,1747177851785,-151.0,0.00013972,2]
[360978793,1747177851795,-151.0,0.00013972,2]
[360978794,1747177851805,-151.0,0.00013972,2]
[360978795,1747177851815,-217.939926,0.00013972,2]
[360978796,1747177851824,-400.0,0.00013972,2]
[360978797,1747177851835,-522.39,0.00013972,2]
[360978798,1747177851844,-400.0,0.00013972,2]
[360978799,1747177851854,-449.03,0.00013972,2]
[360978800,1747177851864,-712.47,0.00013972,2]
[360978801,1747177851873,-485.17114054,0.00013972,2]
[360978802,1747177851884,-151.0,0.00013972,2]
[360978803,1747177851894,-151.0,0.00013972,2]
[360978804,1747177851903,-400.0,0.00013972,2]
[360978805,1747177851913,-400.0,0.00013972,2]
[360978806,1747177851922,-400.0,0.00013972,2]
[360978807,1747177851931,-400.0,0.00013972,2]
[360978808,1747177851941,-400.0,0.00013972,2]
[360978809,1747177851951,-400.0,0.00013972,2]
[360978810,1747177851961,-400.0,0.00013972,2]
[360978811,1747177851970,-400.0,0.00013972,2]
[360978812,1747177851980,-400.0,0.00013972,2]
[360978813,1747177851989,-461.11,0.00013972,2]
[360978814,1747177851999,-400.0,0.00013972,2]
[360978815,1747177852008,-400.0,0.00013972,2]
[360978816,1747177852018,-400.0,0.00013972,2]
[360978817,1747177852028,-400.0,0.00013972,2]
[360978818,1747177852037,-400.0,0.00013972,2]
[360978819,1747177852047,-400.0,0.00013972,2]
[360978820,1747177852057,-151.0,0.00013972,2]
[360978821,1747177852066,-400.0,0.00013972,2]
[360978822,1747177852076,-151.0,0.00013972,2]
[360978823,1747177852085,-151.0,0.00013972,2]
[360978824,1747177852095,-151.0,0.00013972,2]
[360978825,1747177852104,-400.0,0.00013972,2]
[360978826,1747177852113,-151.0,0.00013972,2]
[360978827,1747177852123,-151.0,0.00013972,2]
[360978828,1747177852132,-151.0,0.00013972,2]
[360978829,1747177852142,-259.652352,0.00013972,2]
[360978830,1747177852152,-400.0,0.00013972,2]
[360978831,1747177852161,-400.0,0.00013972,2]
[360978832,1747177852171,-400.0,0.00013972,2]
[360978833,1747177852180,-400.0,0.00013972,2]
[360978834,1747177852192,-400.0,0.00013972,2]
[360978835,1747177852202,-400.0,0.00013972,2]
[360978836,1747177852212,-235.69097556,0.00013972,2]
[360978837,1747177852222,-476.26,0.00013972,2]
[360978838,1747177852232,-400.0,0.00013972,2]
[360978839,1747177852242,-400.0,0.00013972,2]
[360978840,1747177852251,-400.0,0.00013972,2]
[360978841,1747177852261,-400.0,0.00013972,2]
[360978842,1747177852271,-400.0,0.00013972,2]
[360978843,1747177852280,-555.18,0.00013972,2]
[360978844,1747177852290,-636.1,0.00013972,2]
[360978845,1747177852299,-400.0,0.00013972,2]
[360978846,1747177852310,-400.0,0.00013972,2]
[360978847,1747177852320,-400.0,0.00013972,2]
[360978848,1747177852330,-400.0,0.00013972,2]
[360978849,1747177852339,-400.0,0.00013972,2]
[360978850,1747177852349,-465.33,0.00013972,2]
[360978851,1747177852358,-400.0,0.00013972,2]
[360978852,1747177852368,-400.0,0.00013972,2]
[360978853,1747177852377,-186.674992,0.00013972,2]
[360978854,1747177852387,-400.0,0.00013972,2]
[360978855,1747177852396,-400.0,0.00013972,2]
[360978856,1747177852406,-400.0,0.00013972,2]
[360978857,1747177852416,-400.0,0.00013972,2]
[360978858,1747177852425,-400.0,0.00013972,2]
[360978859,1747177852434,-525.86538055,0.00013972,2]
[360978860,1747177852443,-400.0,0.00013972,2]
[360978861,1747177852455,-1094.46,0.00013972,2]
[360978862,1747177852464,-939.57,0.00013972,2]
[360978863,1747177852473,-666.61,0.00013972,2]
[360978864,1747177852483,-400.0,0.00013972,2]
[360978865,1747177852492,-400.0,0.00013972,2]
[360978866,1747177852502,-400.0,0.00013972,2]
[360978867,1747177852511,-151.0,0.00013972,2]
[360978868,1747177852521,-151.0,0.00013972,2]
[360978869,1747177852530,-151.0,0.00013972,2]
[360978870,1747177852539,-151.0,0.00013972,2]
[360978871,1747177852548,-1322.6,0.00013972,2]
[360978872,1747177852558,-400.0,0.00013972,2]
[360978873,1747177852567,-400.0,0.00013972,2]
[360978874,1747177852576,-400.0,0.00013972,2]
[360978875,1747177852585,-151.0,0.00013972,2]
[360978876,1747177852594,-151.0,0.00013972,2]
[360978877,1747177852603,-400.0,0.00013972,2]
[360978878,1747177852612,-405.7,0.00013972,2]
[360978879,1747177852621,-277.54150934,0.00013972,2]
[360978880,1747177852631,-400.0,0.00013972,2]
[360978881,1747177852640,-400.0,0.00013972,2]
[360978882,1747177852650,-400.0,0.00013972,2]
[360978883,1747177852659,-400.0,0.00013972,2]
[360978884,1747177852669,-836.51,0.00013972,2]
[360978885,1747177852679,-695.87,0.00013972,2]
[360978886,1747177852687,-400.0,0.00013972,2]
[360978887,1747177852697,-400.0,0.00013972,2]
[360978888,1747177852708,-433.42,0.00013972,2]
[360978889,1747177852717,-400.0,0.00013972,2]
[360978890,1747177852727,-970.2,0.00013972,2]
[360978891,1747177852736,-400.0,0.00013972,2]
[360978892,1747177852746,-400.0,0.00013972,2]
[360978893,1747177852755,-400.0,0.00013972,2]
[360978894,1747177852765,-400.0,0.00013972,2]
[360978895,1747177852775,-400.0,0.00013972,2]
[360978896,1747177852788,-563.99,0.00013972,2]
[360978897,1747177852797,-434.24,0.00013972,2]
[360978898,1747177852807,-400.0,0.00013972,2]
[360978899,1747177852816,-400.0,0.00013972,2]
[360978900,1747177852826,-484.73367406,0.00013972,2]
[360978901,1747177852836,-690.25,0.00013972,2]
[360978902,1747177852846,-400.0,0.00013972,2]
[360978903,1747177852855,-400.0,0.00013972,2]
[360978904,1747177852865,-405.23,0.00013972,2]
[360978905,1747177852874,-678.01,0.00013972,2]
[360978906,1747177852885,-400.0,0.00013972,2]
[360978907,1747177852895,-1470.1,0.00013972,2]
[360978908,1747177852904,-400.0,0.00013972,2]
[360978909,1747177852913,-400.0,0.00013972,2]
[360978910,1747177852923,-400.0,0.00013972,2]
[360978911,1747177852932,-151.0,0.00013972,2]
[360978912,1747177852942,-593.2,0.00013972,2]
[360978913,1747177852953,-151.0,0.00013972,2]
[360978914,1747177852963,-3580.97,0.00013972,2]
[360978915,1747177852972,-400.0,0.00013972,2]
[360978916,1747177852982,-151.0,0.00013972,2]
[360978917,1747177852992,-400.0,0.00013972,2]
[360978918,1747177853001,-151.0,0.00013972,2]
[360978919,1747177853011,-400.0,0.00013972,2]
[360978920,1747177853020,-400.0,0.00013972,2]
[360978921,1747177853030,-400.0,0.00013972,2]
[360978922,1747177853039,-151.0,0.00013972,2]
[360978923,1747177853048,-151.0,0.00013972,2]
[360978924,1747177853057,-400.0,0.00013972,2]
[360978925,1747177853067,-151.0,0.00013972,2]
[360978926,1747177853076,-151.0,0.00013972,2]
[360978927,1747177853086,-3328.79,0.00013972,2]
[360978928,1747177853095,-400.0,0.00013972,2]
[360978929,1747177853105,-400.0,0.00013972,2]
[360978930,1747177853115,-400.0,0.00013972,2]
[360978931,1747177853124,-151.0,0.00013972,2]
[360978932,1747177853134,-1207.82,0.00013972,2]
[360978933,1747177853143,-151.0,0.00013972,2]
[360978934,1747177853153,-256.606548,0.00013972,2]
[360978935,1747177853162,-400.0,0.00013972,2]
[360978936,1747177853171,-402.03,0.00013972,2]
[360978937,1747177853181,-400.0,0.00013972,2]
[360978938,1747177853190,-640.47,0.00013972,2]
[360978939,1747177853201,-400.0,0.00013972,2]
[360978940,1747177853211,-1023.24,0.00013972,2]
[360978941,1747177853221,-422.14,0.00013972,2]
[360978942,1747177853230,-400.0,0.00013972,2]
[360978943,1747177853239,-400.0,0.00013972,2]
[360978944,1747177853250,-820.66,0.00013972,2]
[360978945,1747177853259,-174.849355,0.00013972,2]
[360978946,1747177853268,-3133.11,0.00013972,2]
[360978947,1747177853278,-787.2,0.00013972,2]
[360978948,1747177853288,-805.4,0.00013972,2]
[360978949,1747177853297,-449.51,0.00013972,2]
[360978950,1747177853306,-400.0,0.00013972,2]
[360978951,1747177853316,-410.06,0.00013972,2]
[360978952,1747177853326,-400.0,0.00013972,2]
[360978953,1747177853336,-1712.23,0.00013972,2]
[360978954,1747177853345,-837.11,0.00013972,2]
[360978955,1747177853355,-1235.24,0.00013972,2]
[360978956,1747177853365,-400.0,0.00013972,2]
[360978957,1747177853374,-511.1,0.00013972,2]
[360978958,1747177853383,-1129.21,0.00013972,2]
[360978959,1747177853393,-400.0,0.00013972,2]
[360978960,1747177853403,-400.0,0.00013972,2]
[360978961,1747177853413,-400.0,0.00013972,2]
[360978962,1747177853422,-400.0,0.00013972,2]
[360978963,1747177853431,-727.23,0.00013972,2]
[360978964,1747177853440,-400.0,0.00013972,2]
[360978965,1747177853451,-2061.37,0.00013972,2]
[360978966,1747177853460,-1711.13,0.00013972,2]
[360978967,1747177853470,-4585.35,0.00013972,2]
[360978968,1747177853480,-1080.88,0.00013972,2]
[360978969,1747177853490,-1872.54,0.00013972,2]
[360978970,1747177853499,-1559.01,0.00013972,2]
[360978971,1747177853508,-400.0,0.00013972,2]
[360978972,1747177853518,-549.38,0.00013972,2]
[360978973,1747177853527,-400.0,0.00013972,2]
[360978974,1747177853536,-584.69,0.00013972,2]
[360978975,1747177853545,-400.0,0.00013972,2]
[360978977,1747177853555,-436.65,0.00013972,2]
[360978979,1747177853564,-400.0,0.00013972,2]
[360978981,1747177853573,-1693.16,0.00013972,2]
[360978983,1747177853583,-834.05,0.00013972,2]
[360978985,1747177853592,-400.0,0.00013972,2]
[360978987,1747177853601,-400.0,0.00013972,2]
[360978989,1747177853611,-400.0,0.00013972,2]
[360978991,1747177853620,-400.0,0.00013972,2]
[360978993,1747177853629,-400.0,0.00013972,2]
[360978995,1747177853638,-2127.68,0.00013972,2]
[360978997,1747177853648,-400.0,0.00013972,2]
[360978998,1747177853657,-400.0,0.00013972,2]
[360979000,1747177853667,-973.06,0.00013972,2]
[360979002,1747177853675,-400.0,0.00013972,2]
[360979004,1747177853685,-400.0,0.00013972,2]
[360979005,1747177853695,-400.0,0.00013972,2]
[360979006,1747177853705,-551.2,0.00013972,2]
[360979007,1747177853714,-413.34,0.00013972,2]
[360979009,1747177853723,-2436.09,0.00013972,2]
[360979011,1747177853733,-400.0,0.00013972,2]
[360979013,1747177853743,-400.0,0.00013972,2]
[360979014,1747177853752,-400.0,0.00013972,2]
[360979015,1747177853762,-400.0,0.00013972,2]
[360979016,1747177853771,-151.0,0.00013972,2]
[360979017,1747177853781,-241.64,0.00013972,2]
[360979018,1747177853794,-1004.96,0.00013972,2]
[360979019,1747177853804,-1824.81,0.00013972,2]
[360979020,1747177853813,-400.0,0.00013972,2]
[360979021,1747177853823,-400.0,0.00013972,2]
[360979022,1747177853834,-151.0,0.00013972,2]
[360979023,1747177853843,-400.0,0.00013972,2]
[360979024,1747177853853,-151.0,0.00013972,2]
[360979025,1747177853864,-192.230154,0.00013972,2]
[360979026,1747177853874,-408.05,0.00013972,2]
[360979027,1747177853883,-536.9,0.00013972,2]
[360979028,1747177853893,-400.0,0.00013972,2]
[360979029,1747177853903,-189.03815691,0.00013972,2]
[360979030,1747177853912,-492.5,0.00013972,2]
[360979031,1747177853922,-1287.19,0.00013972,2]
[360979032,1747177853931,-534.83,0.00013972,2]
[360979033,1747177853940,-400.0,0.00013972,2]
[360979034,1747177853950,-400.0,0.00013972,2]
[360979035,1747177853961,-649.18,0.00013972,2]
[360979036,1747177853970,-7339.72,0.00013972,2]
[360979037,1747177853980,-400.0,0.00013972,2]
[360979038,1747177853989,-446.36,0.00013972,2]
[360979039,1747177854000,-841.28,0.00013972,2]
[360979040,1747177854010,-400.0,0.00013972,2]
[360979041,1747177854020,-400.0,0.00013972,2]
[360979042,1747177854030,-2664.61,0.00013972,2]
[360979043,1747177854040,-1097.25,0.00013972,2]
[360979044,1747177854050,-400.0,0.00013972,2]
[360979045,1747177854060,-761.26,0.00013972,2]
[360979046,1747177854070,-400.0,0.00013972,2]
[360979047,1747177854079,-449.97,0.00013972,2]
[360979048,1747177854089,-400.0,0.00013972,2]
[360979049,1747177854099,-400.0,0.00013972,2]
[360979050,1747177854109,-492.67,0.00013972,2]
[360979051,1747177854119,-1265.85,0.00013972,2]
[360979052,1747177854128,-4308.11,0.00013972,2]
[360979053,1747177854138,-662.02,0.00013972,2]
[360979054,1747177854149,-400.0,0.00013972,2]
[360979055,1747177854159,-495.01,0.00013972,2]
[360979056,1747177854168,-400.0,0.00013972,2]
[360979057,1747177854178,-1719.35,0.00013972,2]
[360979058,1747177854187,-1791.39,0.00013972,2]
[360979059,1747177854196,-400.0,0.00013972,2]
[360979060,1747177854208,-1519.63,0.00013972,2]
[360979061,1747177854218,-400.0,0.00013972,2]
[360979062,1747177854227,-1061.19,0.00013972,2]
[360979063,1747177854237,-400.0,0.00013972,2]